bitfinex/quotes_BTCUSD_20241201
["timestamp","ask_amount","ask_price","bid_price","bid_amount"]
[1733027865301,0.26972151,96475.0,96474.0,0.00681161]
[1733027865535,0.26872151,96475.0,96474.0,0.00358455]
[1733027865770,0.26972151,96475.0,96474.0,0.00358455]
[1733027866295,0.28912745,96475.0,96474.0,0.00358455]
[1733027866737,0.26972151,96475.0,96474.0,0.00358455]
[1733027866956,0.28912469,96475.0,96474.0,0.00358455]
[1733027867564,0.27431775,96475.0,96474.0,0.00358455]
[1733027869772,0.27430971,96475.0,96474.0,0.00358455]
[1733027873909,0.26430971,96475.0,96474.0,0.00358455]
[1733027874661,0.26030971,96475.0,96474.0,0.00358455]
[1733027874884,0.26030971,96475.0,96474.0,0.00681624]
[1733027875097,0.26330971,96475.0,96474.0,0.00681624]
[1733027875539,0.26030971,96475.0,96474.0,0.00681624]
[1733027875748,0.28764068,96475.0,96474.0,0.00681624]
[1733027876636,0.28764433,96475.0,96474.0,0.00681624]
[1733027876879,0.28864433,96475.0,96474.0,0.00681624]
[1733027877108,0.29064433,96475.0,96474.0,0.00681624]
[1733027879544,0.26331336,96475.0,96474.0,0.00681624]
[1733027880189,0.26331912,96475.0,96474.0,0.00681624]
[1733027882439,0.24391457,96475.0,96474.0,0.00681624]
[1733027882656,0.26332783,96475.0,96474.0,0.00681624]
[1733027883316,0.26246218,96475.0,96474.0,0.00681624]
[1733027883968,0.26246218,96475.0,96474.0,0.00358455]
[1733027884193,0.26246218,96475.0,96474.0,0.00681565]
[1733027884933,0.26246218,96475.0,96474.0,0.00358455]
[1733027886305,0.24304892,96475.0,96474.0,0.00681565]
[1733027886516,0.2624743,96475.0,96474.0,0.00681565]
[1733027887362,0.2624743,96475.0,96474.0,0.00358455]
[1733027888261,0.2724743,96475.0,96474.0,0.00358455]
[1733027892849,0.25304892,96475.0,96474.0,0.00358455]
[1733027893058,0.27248047,96475.0,96474.0,0.00358455]
[1733027896559,0.27148047,96475.0,96474.0,0.00358455]
[1733027896771,0.25204892,96475.0,96474.0,0.00358455]
[1733027896986,0.2724753,96475.0,96474.0,0.00358455]
[1733027897213,0.2704753,96475.0,96474.0,0.00358455]
[1733027897695,0.2724753,96475.0,96474.0,0.00358455]
[1733027898614,0.36491293,96475.0,96474.0,0.00358455]
[1733027900087,0.36490688,96475.0,96474.0,0.00358455]
[1733027902133,0.3761043,96475.0,96474.0,0.00358455]
[1733027903355,0.35668397,96475.0,96474.0,0.00358455]
[1733027903564,0.37609917,96475.0,96474.0,0.00358455]
[1733027903783,0.28366154,96475.0,96474.0,0.00358455]
[1733027907470,0.28366181,96475.0,96474.0,0.00358455]
[1733027909072,0.27246439,96475.0,96474.0,0.00358455]
[1733027909287,0.14616439,96475.0,96474.0,0.00358455]
[1733027909511,0.12616439,96475.0,96474.0,0.00682336]
[1733027909745,0.10674892,96475.0,96474.0,0.00682336]
[1733027909965,0.11674892,96475.0,96474.0,0.00682336]
[1733027910404,0.11474892,96475.0,96474.0,0.00682336]
[1733027910823,0.11374892,96475.0,96474.0,0.00682336]
[1733027911267,0.00090371,96475.0,96474.0,0.00882336]
[1733027911480,0.01090371,96475.0,96474.0,0.00682336]
[1733027911724,0.01090371,96475.0,96474.0,0.00882336]
[1733027912817,0.01090371,96475.0,96474.0,0.19510871]
[1733027913061,0.01090371,96475.0,96474.0,0.19310871]
[1733027913268,0.01090371,96475.0,96474.0,0.19610871]
[1733027913787,0.01090371,96475.0,96474.0,0.19410871]
[1733027913974,0.01090371,96475.0,96474.0,0.00982336]
[1733027914113,0.01090371,96475.0,96474.0,0.19608047]
[1733027914389,0.01090371,96475.0,96474.0,0.00782336]
[1733027914600,0.01090371,96475.0,96474.0,0.19608047]
[1733027915016,0.01090371,96475.0,96474.0,0.00982336]
[1733027915228,0.01090371,96475.0,96474.0,0.00882336]
[1733027915910,0.00090371,96475.0,96474.0,0.00982336]
[1733027916124,0.01090371,96475.0,96474.0,0.00982336]
[1733027916341,0.01090371,96475.0,96474.0,0.01182336]
[1733027916763,0.01090371,96475.0,96474.0,0.19809485]
[1733027917000,0.01090371,96475.0,96474.0,0.01182336]
[1733027917215,0.01090371,96475.0,96474.0,0.19409485]
[1733027917434,0.01090371,96475.0,96474.0,0.14752341]
[1733027917672,0.01090371,96475.0,96474.0,0.00982336]
[1733027917909,0.01090371,96475.0,96474.0,0.14952341]
[1733027918112,0.01090371,96475.0,96474.0,0.00982336]
[1733027923815,0.12374892,96475.0,96474.0,0.00982336]
[1733027924026,0.17194892,96475.0,96474.0,0.00982336]
[1733027924460,0.25424892,96475.0,96474.0,0.00682336]
[1733027925589,0.32113311,96475.0,96474.0,0.00682336]
[1733027925795,0.32113311,96475.0,96474.0,0.00782336]
[1733027926008,0.32113311,96475.0,96474.0,0.00358455]
[1733027926930,0.25424892,96475.0,96474.0,0.00358455]
[1733027927349,0.25424892,96475.0,96474.0,0.00681727]
[1733027929309,0.25424892,96475.0,96474.0,0.00358455]
[1733027931378,0.25524892,96475.0,96474.0,0.00358455]
[1733027932042,0.25424892,96475.0,96474.0,0.00358455]
[1733027932265,0.25724892,96475.0,96474.0,0.00358455]
[1733027932698,0.25624892,96475.0,96474.0,0.00358455]
[1733027932903,0.25824892,96475.0,96474.0,0.00358455]
[1733027939780,0.32664381,96475.0,96474.0,0.00358455]
[1733027941204,0.25824892,96475.0,96474.0,0.00358455]
[1733027950761,0.26824892,96475.0,96474.0,0.00358455]
[1733027952554,0.26624892,96475.0,96474.0,0.00358455]
[1733027952697,0.27524892,96475.0,96474.0,0.00458455]
[1733027953119,0.27324892,96475.0,96474.0,0.00458455]
[1733027953329,0.34414381,96475.0,96474.0,0.00458455]
[1733027953538,0.34814381,96475.0,96474.0,0.00458455]
[1733027958068,0.49814381,96475.0,96474.0,0.00458455]
[1733027958322,0.50814381,96475.0,96474.0,0.00458455]
[1733027958539,0.54047535,96475.0,96474.0,0.00458455]
[1733027959493,0.50814381,96475.0,96474.0,0.00458455]
[1733027963452,0.54046562,96475.0,96474.0,0.00458455]
[1733027963665,0.50814381,96475.0,96474.0,0.00458455]
[1733027963882,0.5404635,96475.0,96474.0,0.00458455]
[1733027965628,0.50814381,96475.0,96474.0,0.00458455]
[1733027965810,0.54046687,96475.0,96474.0,0.00458455]
[1733027966262,0.50814381,96475.0,96474.0,0.00458455]
[1733027970189,0.51272881,96475.0,96474.0,0.00458455]
[1733027971021,0.53213428,96475.0,96474.0,0.00458455]
[1733027973980,0.51272881,96475.0,96474.0,0.00458455]
[1733027974208,0.54507659,96475.0,96474.0,0.00458455]
[1733027975049,0.56449233,96475.0,96474.0,0.00458455]
[1733027979281,0.56450382,96475.0,96474.0,0.00458455]
[1733027979495,0.54507659,96475.0,96474.0,0.00458455]
[1733027979915,0.56450708,96475.0,96474.0,0.00458455]
[1733027982756,0.56451083,96475.0,96474.0,0.00458455]
[1733027983238,0.65761082,96475.0,96474.0,0.00458455]
[1733027986494,0.65765996,96475.0,96474.0,0.00458455]
[1733027987553,0.58676507,96475.0,96474.0,0.00458455]
[1733027987988,0.58676986,96475.0,96474.0,0.00458455]
[1733027988420,0.49361594,96475.0,96474.0,0.00458455]
[1733027991043,0.58677449,96475.0,96474.0,0.00458455]
[1733027992523,0.49361594,96475.0,96474.0,0.00458455]
[1733027992995,0.47361594,96475.0,96474.0,0.00458455]
[1733027993209,0.4741817,96475.0,96474.0,0.00458455]
[1733027993413,0.55148032,96475.0,96474.0,0.00458455]
[1733027994242,0.54689532,96475.0,96474.0,0.00458455]
[1733027994458,0.66661901,96475.0,96474.0,0.00458455]
[1733027995291,0.68661901,96475.0,96474.0,0.00458455]
[1733027995498,0.66661901,96475.0,96474.0,0.00458455]
[1733027995713,0.68661901,96475.0,96474.0,0.00458455]
[1733027996556,0.54689532,96475.0,96474.0,0.00458455]
[1733027998824,0.73336853,96475.0,96474.0,0.00458455]
[1733027999248,0.54689532,96475.0,96474.0,0.00458455]
[1733028000033,0.73336853,96475.0,96474.0,0.00458455]
[1733028000240,0.54689532,96475.0,96474.0,0.00458455]
[1733028000670,0.73336853,96475.0,96474.0,0.00458455]
[1733028000873,0.73341449,96475.0,96474.0,0.00458455]
[1733028001281,0.54689532,96475.0,96474.0,0.00458455]
[1733028001483,0.73342129,96475.0,96474.0,0.00458455]
[1733028001864,0.71342129,96475.0,96474.0,0.00458455]
[1733028002074,0.73342129,96475.0,96474.0,0.00458455]
[1733028003235,0.71342129,96475.0,96474.0,0.00458455]
[1733028003476,0.52689532,96475.0,96474.0,0.00458455]
[1733028003692,0.73345483,96475.0,96474.0,0.00458455]
[1733028005008,0.71345483,96475.0,96474.0,0.00458455]
[1733028005191,0.73345483,96475.0,96474.0,0.00458455]
[1733028005856,0.75645483,96475.0,96474.0,0.00458455]
[1733028006285,0.56989532,96475.0,96474.0,0.00458455]
[1733028010063,0.80304428,96475.0,96474.0,0.00458455]
[1733028010526,0.56989532,96475.0,96474.0,0.00458455]
[1733028011707,0.80316861,96475.0,96474.0,0.00458455]
[1733028012131,0.72586999,96475.0,96474.0,0.00458455]
[1733028012951,0.4925967,96475.0,96474.0,0.00458455]
[1733028013875,0.72587727,96475.0,96474.0,0.00458455]
[1733028014291,0.4925967,96475.0,96474.0,0.00458455]
[1733028014505,0.72587727,96475.0,96474.0,0.00458455]
[1733028014714,0.82870873,96475.0,96474.0,0.00458455]
[1733028015391,0.59542816,96475.0,96474.0,0.00458455]
[1733028015621,0.8287157,96475.0,96474.0,0.00458455]
[1733028016090,0.59542816,96475.0,96474.0,0.00458455]
[1733028016301,0.8287157,96475.0,96474.0,0.00458455]
[1733028018424,0.59542816,96475.0,96474.0,0.00458455]
[1733028028387,0.60644345,96475.0,96474.0,0.00458455]
[1733028046686,0.59542816,96475.0,96474.0,0.00458455]
[1733028047633,0.87535572,96475.0,96474.0,0.00458455]
[1733028049549,0.59542816,96475.0,96474.0,0.00458455]
[1733028054649,0.60661435,96475.0,96474.0,0.00458455]
[1733028063612,0.59542816,96475.0,96474.0,0.00458455]
[1733028067598,0.60639328,96475.0,96474.0,0.00458455]
[1733028070809,0.60639328,96475.0,96474.0,5.5e-07]
[1733028071480,0.59542816,96475.0,96474.0,5.5e-07]
[1733028075400,0.59542816,96475.0,96474.0,0.00086405]
[1733028078170,0.60636187,96475.0,96474.0,0.00086405]
[1733028078372,0.88625333,96475.0,96474.0,0.00086405]
[1733028082496,0.420309,96474.0,96473.0,3.3e-07]
[1733028082702,1.01735586,96474.0,96473.0,3.3e-07]
[1733028082951,0.73743345,96474.0,96473.0,3.3e-07]
[1733028083534,0.78553345,96474.0,96473.0,3.3e-07]
[1733028083757,0.78953345,96474.0,96473.0,3.3e-07]
[1733028083954,1.0694549,96474.0,96473.0,3.3e-07]
[1733028084152,0.79753345,96474.0,96473.0,0.00100033]
[1733028084953,0.79753345,96474.0,96473.0,3.3e-07]
[1733028085153,0.79353345,96474.0,96473.0,3.3e-07]
[1733028085605,0.80153345,96474.0,96473.0,0.00100033]
[1733028085812,0.79353345,96474.0,96473.0,1e-06]
[1733028086019,0.397333,96463.0,96462.0,0.0017268]
[1733028086230,0.62644439,96463.0,96462.0,0.0017268]
[1733028086439,0.8597202,96463.0,96462.0,0.0017268]
[1733028087132,0.62644439,96463.0,96462.0,0.0017268]
[1733028087343,0.64044439,96463.0,96462.0,0.0027268]
[1733028087546,0.8737202,96463.0,96462.0,0.0027268]
[1733028090949,0.64044439,96463.0,96462.0,0.0027268]
[1733028091580,0.65131502,96463.0,96462.0,0.0027268]
[1733028092071,0.67156656,96463.0,96462.0,0.0027268]
[1733028093368,0.9048751,96463.0,96462.0,0.0027268]
[1733028093984,0.67156656,96463.0,96462.0,0.0027268]
[1733028094181,0.90487152,96463.0,96462.0,0.0027268]
[1733028098706,0.904855,96463.0,96462.0,0.0027268]
[1733028100832,0.67156656,96463.0,96462.0,0.0027268]
[1733028103715,0.90486786,96463.0,96462.0,0.0027268]
[1733028103952,0.67156656,96463.0,96462.0,0.0027268]
[1733028104321,0.90487167,96463.0,96462.0,0.0027268]
[1733028104596,0.67156656,96463.0,96462.0,0.0027268]
[1733028104968,0.90487106,96463.0,96462.0,0.0027268]
[1733028105413,0.78070112,96463.0,96462.0,0.0027268]
[1733028105629,0.64071879,96463.0,96462.0,0.0027268]
[1733028105830,0.54739662,96463.0,96462.0,0.0027268]
[1733028106686,0.64071879,96463.0,96462.0,0.0027268]
[1733028107131,0.51504884,96463.0,96462.0,0.0027268]
[1733028107306,0.55951301,96463.0,96462.0,0.0027268]
[1733028114336,0.51504884,96463.0,96462.0,0.0027268]
[1733028117031,0.50504884,96463.0,96462.0,0.0027268]
[1733028117761,0.34504884,96463.0,96462.0,0.0027268]
[1733028118013,0.34417821,96463.0,96462.0,0.0027268]
[1733028118230,0.34417821,96463.0,96462.0,0.00484856]
[1733028118462,0.13684521,96463.0,96462.0,0.05154856]
[1733028118694,0.13684521,96463.0,96462.0,0.1299268]
[1733028118962,0.12684521,96463.0,96462.0,0.13205013]
[1733028119210,0.12784521,96463.0,96462.0,0.13105013]
[1733028119428,0.12784521,96463.0,96462.0,0.13205013]
[1733028119652,0.11584521,96463.0,96462.0,0.13105013]
[1733028120118,0.12584521,96463.0,96462.0,0.13105013]
[1733028120354,0.10584521,96463.0,96462.0,0.13105013]
[1733028120589,0.11584521,96463.0,96462.0,0.13105013]
[1733028120839,0.12784521,96463.0,96462.0,0.13105013]
[1733028131843,0.11784521,96463.0,96462.0,0.13105013]
[1733028132836,0.015,96463.0,96462.0,0.13105013]
[1733028133055,0.005,96463.0,96462.0,0.13105013]
[1733028134255,0.005,96463.0,96462.0,0.13288488]
[1733028135405,0.02,96464.0,96462.0,0.13288488]
[1733028135406,0.02,96464.0,96463.0,0.256233]
[1733028135836,0.02,96464.0,96463.0,0.25834957]
[1733028136875,0.021,96464.0,96463.0,0.26434957]
[1733028137933,0.031,96464.0,96463.0,0.26734957]
[1733028138359,0.021,96464.0,96463.0,0.26734957]
[1733028138574,0.031,96464.0,96463.0,0.26734957]
[1733028138986,0.021,96464.0,96463.0,0.26734957]
[1733028144626,0.001,96464.0,96463.0,0.26734957]
[1733028144841,0.001,96464.0,96463.0,0.26821307]
[1733028160358,0.001,96464.0,96463.0,0.40776537]
[1733028161410,0.001,96464.0,96463.0,0.26821307]
[1733028162473,0.001,96464.0,96463.0,0.4542828]
[1733028163031,0.001,96464.0,96463.0,0.45447353]
[1733028163345,0.001,96464.0,96463.0,0.26821307]
[1733028164007,0.001,96464.0,96463.0,0.50103864]
[1733028164697,0.001,96464.0,96463.0,0.26821307]
[1733028164920,0.001,96464.0,96463.0,0.50115618]
[1733028165131,0.001,96464.0,96463.0,0.26821307]
[1733028166851,0.001,96464.0,96463.0,0.50108074]
[1733028168288,0.001,96464.0,96463.0,0.50108392]
[1733028169739,0.001,96464.0,96463.0,0.26821307]
[1733028170578,0.001,96464.0,96463.0,0.50109958]
[1733028171596,0.001,96464.0,96463.0,0.26821307]
[1733028172707,0.001,96464.0,96463.0,0.21931307]
[1733028181619,0.0767,96464.0,96463.0,0.01198007]
[1733028181865,0.0867,96464.0,96463.0,0.01198007]
[1733028182074,0.0867,96464.0,96463.0,0.1984903]
[1733028182293,0.0867,96464.0,96463.0,0.0098635]
[1733028182544,0.1341,96464.0,96463.0,0.01197351]
[1733028183688,0.1341,96464.0,96463.0,0.1518183]
[1733028184338,0.1341,96464.0,96463.0,0.01197351]
[1733028193293,0.14540675,96464.0,96463.0,0.01197351]
[1733028198138,0.1341,96464.0,96463.0,0.01197351]
[1733028199692,0.1341,96464.0,96463.0,0.0098635]
[1733028200378,0.30482001,96464.0,96463.0,0.0098635]
[1733028200822,0.24694521,96464.0,96463.0,0.0098635]
[1733028201048,0.24594521,96464.0,96463.0,0.0038635]
[1733028201272,0.24594521,96464.0,96463.0,0.0008635]
[1733028201493,0.25094521,96464.0,96463.0,0.0008635]
[1733028202877,0.24894521,96464.0,96463.0,0.0008635]
[1733028203274,0.25094521,96464.0,96463.0,0.0008635]
[1733028203881,0.25294521,96464.0,96463.0,0.0008635]
[1733028214029,0.24294521,96464.0,96463.0,0.0008635]
[1733028214246,0.017,96464.0,96463.0,0.0008635]
[1733028214460,0.017,96464.0,96463.0,0.2101666]
[1733028215299,0.01,96464.0,96463.0,0.2101666]
[1733028215716,0.012,96464.0,96463.0,0.2101666]
[1733028216135,0.01,96464.0,96463.0,0.2101666]
[1733028216564,0.012,96464.0,96463.0,0.2101666]
[1733028216744,0.01,96464.0,96463.0,0.2101666]
[1733028218861,0.01,96464.0,96463.0,0.21200132]
[1733028219109,0.02,96465.0,96463.0,0.21200132]
[1733028219300,0.02,96465.0,96464.0,0.00183461]
[1733028219508,0.02,96465.0,96464.0,0.00380384]
[1733028220714,0.02,96465.0,96464.0,0.00580384]
[1733028220927,0.02,96465.0,96464.0,0.23869761]
[1733028221151,0.02,96465.0,96464.0,0.234863]
[1733028221369,0.02,96465.0,96464.0,0.237863]
[1733028222651,0.02,96465.0,96464.0,0.238863]
[1733028223306,0.02,96465.0,96464.0,0.00596923]
[1733028223542,0.02,96465.0,96464.0,0.00780385]
[1733028225112,0.019,96465.0,96464.0,0.00780385]
[1733028225567,0.01,96467.0,96465.0,0.207329]
[1733028225781,0.01,96467.0,96466.0,0.18813501]
[1733028225968,0.01,96467.0,96466.0,0.00379876]
[1733028226591,0.01,96469.0,96466.0,0.00379876]
[1733028226799,0.01,96468.0,96467.0,0.207324]
[1733028227002,0.01,96468.0,96467.0,0.2111219]
[1733028227334,0.01,96468.0,96467.0,0.35084145]
[1733028227554,0.01,96468.0,96467.0,0.34900686]
[1733028227974,0.01,96468.0,96467.0,0.35100686]
[1733028228203,0.01,96468.0,96467.0,0.35100352]
[1733028230175,0.01,96468.0,96467.0,0.35098291]
[1733028234236,0.01,96468.0,96467.0,0.21128731]
[1733028234450,0.01,96468.0,96467.0,0.2131219]
[1733028236498,0.011727,96468.0,96467.0,0.2131219]
[1733028241721,0.001727,96468.0,96467.0,0.2131219]
[1733028241973,0.011727,96468.0,96467.0,0.2131219]
[1733028253657,0.011727,96468.0,96467.0,0.3528175]
[1733028253860,0.011727,96468.0,96467.0,0.35098291]
[1733028254651,0.011727,96468.0,96467.0,0.21128731]
[1733028254870,0.011727,96468.0,96467.0,0.35280587]
[1733028255072,0.011727,96468.0,96467.0,0.35097128]
[1733028255278,0.011727,96468.0,96467.0,0.21128731]
[1733028255475,0.011727,96468.0,96467.0,0.21312191]
[1733028257189,0.011727,96468.0,96467.0,0.39939515]
[1733028257391,0.011727,96468.0,96467.0,0.39756055]
[1733028258162,0.011727,96468.0,96467.0,0.39756055]
[1733028259231,0.011727,96468.0,96467.0,0.21128731]
[1733028259436,0.011727,96468.0,96467.0,0.21312191]
[1733028259666,0.011727,96468.0,96467.0,0.39946011]
[1733028259886,0.011727,96468.0,96467.0,0.39762551]
[1733028260306,0.011727,96468.0,96467.0,0.21128731]
[1733028260516,0.011727,96468.0,96467.0,0.21312191]
[1733028263184,0.011727,96468.0,96467.0,0.44608568]
[1733028263457,0.011727,96468.0,96467.0,0.44425108]
[1733028264311,0.011727,96468.0,96467.0,0.21128731]
[1733028264519,0.011727,96468.0,96467.0,0.21312191]
[1733028264839,0.011727,96468.0,96467.0,0.21128731]
[1733028270354,0.057227,96468.0,96467.0,0.21128731]
[1733028272705,0.057227,96468.0,96467.0,0.44442446]
[1733028273328,0.057227,96468.0,96467.0,0.44442216]
[1733028273560,0.057227,96468.0,96467.0,0.44442954]
[1733028273920,0.057227,96468.0,96467.0,0.21128731]
[1733028274318,0.057227,96468.0,96467.0,0.44444303]
[1733028274555,0.057227,96468.0,96467.0,0.44444034]
[1733028275495,0.057227,96468.0,96467.0,0.21128731]
[1733028275937,0.057227,96468.0,96467.0,0.4444505]
[1733028276347,0.057227,96468.0,96467.0,0.21128731]
[1733028276986,0.057227,96468.0,96467.0,0.4444462]
[1733028277426,0.057227,96468.0,96467.0,0.2371222]
[1733028277610,0.057227,96468.0,96467.0,0.00396331]
[1733028278292,0.057227,96468.0,96467.0,0.23712458]
[1733028278521,0.047227,96468.0,96467.0,0.23712458]
[1733028278730,0.16007221,96468.0,96467.0,0.00396331]
[1733028278965,0.24927221,96468.0,96467.0,0.00396331]
[1733028279169,0.24927221,96468.0,96467.0,0.002]
[1733028279383,0.24927221,96468.0,96467.0,0.00410476]
[1733028279599,0.24927221,96468.0,96467.0,0.18855159]
[1733028279860,0.24927221,96468.0,96467.0,0.19065635]
[1733028280078,0.24927221,96468.0,96467.0,0.00210476]
[1733028280295,0.24927221,96468.0,96467.0,0.00310476]
[1733028282367,0.25027221,96468.0,96467.0,0.00310476]
[1733028282622,0.25027221,96468.0,96467.0,0.00210476]
[1733028282846,0.25227221,96468.0,96467.0,0.00210476]
[1733028283072,0.217324,96467.0,96465.0,0.0008635]
[1733028283311,0.10284521,96466.0,96465.0,0.0008635]
[1733028283761,0.15024521,96466.0,96465.0,0.0008635]
[1733028284029,0.23194521,96466.0,96465.0,0.0008635]
[1733028284665,0.23294521,96466.0,96465.0,0.0008635]
[1733028286018,0.23394521,96466.0,96465.0,0.0008635]
[1733028287270,0.23394521,96466.0,96465.0,0.00297045]
[1733028293595,0.2670194,96466.0,96465.0,0.00297045]
[1733028293810,0.25394521,96466.0,96465.0,0.00297045]
[1733028294043,0.25394521,96466.0,96465.0,0.0008635]
[1733028294493,0.25567221,96466.0,96465.0,0.0008635]
[1733028298036,0.25567221,96466.0,96465.0,0.00283173]
[1733028299251,0.25567221,96466.0,96465.0,0.0008635]
[1733028300526,0.24567221,96466.0,96465.0,0.0008635]
[1733028300757,0.11657221,96466.0,96465.0,0.0008635]
[1733028301171,0.11657221,96466.0,96465.0,0.00283173]
[1733028301843,0.11557221,96466.0,96465.0,0.00283173]
[1733028302067,0.11457221,96466.0,96465.0,0.00283173]
[1733028302288,0.11457221,96466.0,96465.0,0.00383173]
[1733028302501,0.15987221,96466.0,96465.0,0.00383173]
[1733028302646,0.15987221,96466.0,96465.0,0.00283173]
[1733028302863,0.15987221,96466.0,96465.0,0.00383173]
[1733028303301,0.24127221,96466.0,96465.0,0.00283173]
[1733028306115,0.24227221,96466.0,96465.0,0.00283173]
[1733028306997,0.24127221,96466.0,96465.0,0.00283173]
[1733028307205,0.24327221,96466.0,96465.0,0.00283173]
[1733028307758,0.24227221,96466.0,96465.0,0.00283173]
[1733028308032,0.24327221,96466.0,96465.0,0.00283173]
[1733028308620,0.24227221,96466.0,96465.0,0.00283173]
[1733028308948,0.24327221,96466.0,96465.0,0.00283173]
[1733028312921,0.24227221,96466.0,96465.0,0.00283173]
[1733028313526,0.24327221,96466.0,96465.0,0.00283173]
[1733028315317,0.25327221,96466.0,96465.0,0.00283173]
[1733028315980,0.25327221,96466.0,96465.0,0.0008635]
[1733028316395,0.25127221,96466.0,96465.0,0.0008635]
[1733028316829,0.25327221,96466.0,96465.0,0.0008635]
[1733028321070,0.26443537,96466.0,96465.0,0.0008635]
[1733028321209,0.25327221,96466.0,96465.0,0.0008635]
[1733028322703,0.25327221,96466.0,96465.0,0.00297038]
[1733028325855,0.059027,96466.0,96465.0,0.00297038]
[1733028326074,0.013727,96466.0,96465.0,0.00297038]
[1733028327638,0.013727,96466.0,96465.0,0.14279604]
[1733028327844,0.013727,96466.0,96465.0,0.00297038]
[1733028328059,0.012727,96466.0,96465.0,0.00297038]
[1733028328298,0.011727,96466.0,96465.0,0.00297038]
[1733028328992,0.011727,96466.0,96465.0,0.14288917]
[1733028329640,0.011727,96466.0,96465.0,0.00297038]
[1733028330304,0.001727,96466.0,96465.0,0.23784784]
[1733028330518,0.001727,96466.0,96465.0,0.23601315]
[1733028331386,0.001727,96466.0,96465.0,0.23801315]
[1733028332081,0.001727,96466.0,96465.0,0.23901315]
[1733028333027,0.011727,96466.0,96465.0,0.23901315]
[1733028333494,0.011727,96466.0,96465.0,0.00597038]
[1733028333712,0.011727,96466.0,96465.0,0.00780504]
[1733028334597,0.001727,96466.0,96465.0,0.00780504]
[1733028334810,0.011727,96466.0,96465.0,0.00780504]
[1733028336191,0.001727,96466.0,96465.0,0.00780504]
[1733028338577,0.001727,96466.0,96465.0,0.19415617]
[1733028339422,0.001727,96466.0,96465.0,0.19415499]
[1733028341811,0.001727,96466.0,96465.0,0.00780504]
[1733028342018,0.001727,96466.0,96465.0,0.19411452]
[1733028342228,0.001727,96466.0,96465.0,0.00780504]
[1733028345458,0.001727,96466.0,96465.0,0.19405006]
[1733028345655,0.001727,96466.0,96465.0,0.2406919]
[1733028345857,0.001727,96466.0,96465.0,0.00597038]
[1733028346108,0.001727,96466.0,96465.0,0.007805]
[1733028347069,0.001727,96466.0,96465.0,0.24057369]
[1733028347307,0.001727,96466.0,96465.0,0.23873907]
[1733028348303,0.001727,96466.0,96465.0,0.00597038]
[1733028348563,0.001727,96466.0,96465.0,0.24057368]
[1733028348845,0.001727,96466.0,96465.0,0.23873907]
[1733028349271,0.001727,96466.0,96465.0,0.00597038]
[1733028349513,0.001727,96466.0,96465.0,0.00780499]
[1733028350940,0.001727,96466.0,96465.0,0.19398065]
[1733028351173,0.001727,96466.0,96465.0,0.00780499]
[1733028353235,0.001727,96466.0,96465.0,0.00597038]
[1733028353658,0.085027,96466.0,96465.0,0.14560225]
[1733028357110,0.085027,96466.0,96465.0,0.00597038]
[1733028361212,0.085027,96466.0,96465.0,0.14560225]
[1733028361427,0.085027,96466.0,96465.0,0.00597038]
[1733028362730,0.085027,96466.0,96465.0,0.14560225]
[1733028363337,0.085027,96466.0,96465.0,0.00597038]
[1733028367614,0.085027,96466.0,96465.0,0.19202463]
[1733028367837,0.001727,96466.0,96465.0,0.19202463]
[1733028368760,0.001727,96466.0,96465.0,0.00597038]
[1733028370547,0.001727,96466.0,96465.0,0.23853819]
[1733028372166,0.001727,96466.0,96465.0,0.00597038]
[1733028372381,0.001727,96466.0,96465.0,0.23867345]
[1733028372582,0.001727,96466.0,96465.0,0.00597038]
[1733028386566,0.047727,96466.0,96465.0,0.00597038]
[1733028388824,0.047727,96466.0,96465.0,0.23876984]
[1733028390599,0.047727,96466.0,96465.0,0.00597038]
[1733028390860,0.047727,96466.0,96465.0,0.23877993]
[1733028391069,0.047727,96466.0,96465.0,0.00597038]
[1733028391483,0.047727,96466.0,96465.0,0.23874521]
[1733028392544,0.047727,96466.0,96465.0,0.00597038]
[1733028393010,0.047727,96466.0,96465.0,0.23874514]
[1733028393800,0.047727,96466.0,96465.0,0.00597038]
[1733028393995,0.047727,96466.0,96465.0,0.23866825]
[1733028395116,0.047727,96466.0,96465.0,0.44599725]
[1733028395561,0.047727,96466.0,96465.0,0.21329938]
[1733028395956,0.001727,96466.0,96465.0,0.21329938]
[1733028399250,0.001727,96466.0,96465.0,0.22105974]
[1733028399914,0.001727,96466.0,96465.0,0.45386154]
[1733028400332,0.001727,96466.0,96465.0,0.22105974]
[1733028400544,0.001727,96466.0,96465.0,0.22105978]
[1733028400759,0.001727,96466.0,96465.0,0.21329938]
[1733028400967,0.001727,96466.0,96465.0,0.22105995]
[1733028404690,0.001727,96466.0,96465.0,0.45387539]
[1733028405970,0.001727,96466.0,96465.0,0.22105995]
[1733028406388,0.001727,96466.0,96465.0,0.4538886]
[1733028406831,0.001727,96466.0,96465.0,0.2465596]
[1733028407787,0.001727,96466.0,96465.0,0.24656003]
[1733028410979,0.001727,96466.0,96465.0,0.01373138]
[1733028411645,0.001727,96466.0,96465.0,0.01373113]
[1733028412260,0.001727,96466.0,96465.0,0.24655535]
[1733028413025,0.001727,96466.0,96465.0,0.01373113]
[1733028415065,0.001727,96466.0,96465.0,0.24662766]
[1733028415274,0.001727,96466.0,96465.0,0.24662103]
[1733028415497,0.001727,96466.0,96465.0,0.01373113]
[1733028417505,0.001727,96466.0,96465.0,0.01556587]
[1733028417723,0.001727,96466.0,96465.0,0.01373113]
[1733028417945,0.001727,96466.0,96465.0,0.01556577]
[1733028418400,0.001727,96466.0,96465.0,0.01556813]
[1733028424261,0.001727,96466.0,96465.0,0.00780502]
[1733028424479,0.001727,96466.0,96465.0,0.0155657]
[1733028431276,0.001727,96466.0,96465.0,0.00780502]
[1733028431488,0.001727,96466.0,96465.0,0.01556726]
[1733028431697,0.001727,96466.0,96465.0,0.00780502]
[1733028431922,0.001727,96466.0,96465.0,0.01556724]
[1733028438215,0.001727,96466.0,96465.0,0.00780502]
[1733028438388,0.001727,96466.0,96465.0,0.01556707]
[1733028441520,0.001727,96466.0,96465.0,0.01373243]
[1733028441732,0.001727,96466.0,96465.0,0.01373334]
[1733028445284,0.001727,96466.0,96465.0,0.01373603]
[1733028452347,0.001727,96466.0,96465.0,0.0137385]
[1733028452638,0.001727,96466.0,96465.0,0.01373854]
[1733028459163,0.001727,96466.0,96465.0,0.00597038]
[1733028469637,0.047127,96466.0,96465.0,0.00597038]
[1733028470327,0.128527,96466.0,96465.0,0.00597038]
[1733028471398,0.128527,96466.0,96465.0,0.0038635]
[1733028471706,0.128527,96466.0,96465.0,0.23688744]
[1733028472061,0.128527,96466.0,96465.0,0.23907675]
[1733028472668,0.128527,96466.0,96465.0,0.23807675]
[1733028473090,0.129527,96466.0,96465.0,0.23807675]
[1733028473335,0.129527,96466.0,96465.0,0.23607675]